bitfinex/quotes_ETHUSD_20250711
["timestamp","ask_amount","ask_price","bid_price","bid_amount"]
[1752215277945,14.86824781,3016.3,3016.2,5.178]
[1752215279627,15.97824781,3016.3,3016.2,5.178]
[1752215282044,17.08824781,3016.3,3016.2,5.178]
[1752215284627,18.19824781,3016.3,3016.2,5.178]
[1752215286563,18.19824781,3016.3,3016.2,10.355]
[1752215287063,19.30824781,3016.3,3016.2,10.355]
[1752215287356,4.6056,3016.3,3016.2,10.355]
[1752215287560,4.44,3016.3,3016.2,10.5206]
[1752215287761,4.44,3016.3,3016.2,10.8609]
[1752215289531,5.55,3016.3,3016.2,10.8609]
[1752215291825,6.66,3016.3,3016.2,10.8609]
[1752215294664,7.77,3016.3,3016.2,10.8609]
[1752215296967,8.88,3016.3,3016.2,10.8609]
[1752215297164,8.881,3016.3,3016.2,10.8609]
[1752215297466,2.1941,3016.0,3015.8,0.002]
[1752215298667,2.1941,3016.0,3015.5,0.002]
[1752215298668,10.7156,3015.9,3015.5,0.002]
[1752215298871,0.55,3015.7,3015.6,10.382]
[1752215299235,11.66,3015.7,3015.6,10.382]
[1752215300073,22.2820346,3015.7,3015.6,10.382]
[1752215300270,24.66926806,3015.7,3015.6,10.382]
[1752215300667,1.11,3015.7,3015.6,10.382]
[1752215300875,1.11,3015.7,3015.6,10.5476]
[1752215301583,0.55,3015.2,3014.0,0.1676]
[1752215301748,11.05,3015.6,3014.5,5.215]
[1752215301749,12.2292,3014.6,3014.5,5.215]
[1752215301955,22.6856346,3014.6,3014.5,5.215]
[1752215302346,0.55,3014.4,3014.0,0.1676]
[1752215302575,11.1720346,3014.1,3014.0,0.002]
[1752215302775,11.1720346,3014.1,3013.7,0.1656]
[1752215302776,0.55,3014.0,3013.7,0.1656]
[1752215303083,10.6220346,3013.8,3013.4,0.002]
[1752215303273,10.6220346,3013.8,3013.6,0.1656]
[1752215303658,10.6220346,3013.8,3013.7,5.215]
[1752215304261,0.55,3013.7,3013.4,0.002]
[1752215304480,2.1715,3013.7,3013.6,5.215]
[1752215304802,3.79573381,3013.7,3013.6,5.215]
[1752215305368,3.79573381,3013.7,3013.6,5.212]
[1752215305599,3.79573381,3013.7,3013.4,0.002]
[1752215306073,3.79573381,3013.7,3013.5,5.211]
[1752215306268,11.7320346,3013.8,3013.5,5.211]
[1752215306698,12.8420346,3013.8,3013.5,5.211]
[1752215307302,12.8420346,3013.8,3013.4,0.002]
[1752215307503,12.8420346,3013.8,3013.6,5.211]
[1752215307979,0.55,3013.5,3013.4,0.002]
[1752215308187,0.55,3013.5,3013.4,5.21]
[1752215309174,1.66,3013.5,3013.4,5.21]
[1752215309375,1.66,3013.5,3013.4,5.209]
[1752215310677,1.66,3013.5,3013.4,0.002]
[1752215310906,2.11273035,3013.5,3013.4,5.208]
[1752215311910,3.22273035,3013.5,3013.4,5.208]
[1752215312605,2.22,3013.5,3013.4,5.208]
[1752215312999,2.22,3013.5,3013.4,0.3423]
[1752215313316,2.22,3013.5,3013.4,5.5523]
[1752215313533,0.55,3013.3,3011.9,0.3403]
[1752215313717,10.6220346,3012.7,3012.4,5.21]
[1752215313886,0.55,3013.0,3012.5,0.3403]
[1752215314091,10.6220346,3013.1,3012.5,0.3403]
[1752215314299,10.6220346,3013.1,3012.5,8.2923]
[1752215314512,10.6220346,3013.1,3012.8,0.1656]
[1752215314690,10.6220346,3013.1,3012.9,5.265]
[1752215315224,10.6220346,3013.1,3012.5,7.952]
[1752215315225,0.55,3012.8,3012.5,7.952]
[1752215315429,11.1720346,3012.6,3012.5,7.952]
[1752215315597,11.1720346,3012.6,3012.1,0.002]
[1752215315598,0.55,3012.4,3012.1,0.002]
[1752215315792,11.1720346,3012.2,3012.1,0.002]
[1752215316126,10.6220346,3012.2,3012.1,0.002]
[1752215316425,10.6220346,3012.2,3012.1,5.268]
[1752215316630,1.11,3012.2,3012.1,5.268]
[1752215316924,1.11,3012.2,3012.1,5.4336]
[1752215317488,2.0581,3012.1,3011.7,7.952]
[1752215317797,11.7320346,3012.2,3011.7,7.952]
[1752215317798,1.11,3012.2,3011.8,5.265]
[1752215318002,1.11,3012.2,3011.9,0.1656]
[1752215318200,11.7320346,3012.2,3011.9,0.1656]
[1752215318902,1.11,3012.2,3011.9,0.1656]
[1752215319115,4.218483,3012.2,3012.0,0.002]
[1752215319499,4.218483,3012.2,3012.0,0.3423]
[1752215319698,4.218483,3012.2,3012.1,0.1656]
[1752215321735,4.218483,3012.2,3012.1,5.4306]
[1752215321736,5.328483,3012.2,3012.1,5.4306]
[1752215322743,5.8613313,3012.2,3012.1,5.4276]
[1752215323215,5.328483,3012.2,3012.1,5.4276]
[1752215324151,0.55,3012.1,3012.0,0.002]
[1752215324307,2.0728,3012.1,3012.0,5.263]
[1752215325738,17.0605176,3012.2,3012.0,5.263]
[1752215325935,6.438483,3012.2,3012.0,5.263]
[1752215326100,6.438483,3012.2,3012.1,0.3403]
[1752215326307,6.438483,3012.2,3012.1,0.5059]
[1752215326705,7.548483,3012.2,3012.1,0.5059]
[1752215328253,7.548483,3012.2,3012.1,10.5059]
[1752215329430,8.658483,3012.2,3012.1,10.5059]
[1752215331004,8.658483,3012.2,3012.1,11.0209]
[1752215331733,8.658483,3012.2,3012.1,0.5059]
[1752215331734,9.768483,3012.2,3012.1,0.5059]
[1752215331908,9.768483,3012.2,3012.1,5.7609]
[1752215334339,10.878483,3012.2,3012.1,9.0739]
[1752215336636,11.988483,3012.2,3012.1,9.0739]
[1752215337737,11.988483,3012.2,3012.1,9.6239]
[1752215338176,11.988483,3012.2,3012.1,19.6239]
[1752215339071,13.098483,3012.2,3012.1,19.6239]
[1752215339823,12.758183,3012.2,3012.1,19.6239]
[1752215340169,12.758183,3012.2,3012.1,23.20034546]
[1752215340960,12.759183,3012.2,3012.1,19.86678146]
[1752215341267,12.759183,3012.2,3012.1,23.32365246]
[1752215341422,13.869183,3012.2,3012.1,23.32365246]
[1752215341623,13.869183,3012.2,3012.1,28.55465246]
[1752215342059,13.869183,3012.2,3012.1,28.98134546]
[1752215343382,13.869183,3012.2,3012.1,39.01779012]
[1752215343965,14.979183,3012.2,3012.1,39.01779012]
[1752215344276,14.979183,3012.2,3012.1,39.02109012]
[1752215344435,14.979183,3012.2,3012.1,28.43134546]
[1752215344637,14.979183,3012.2,3012.1,23.18834546]
[1752215345434,14.979183,3012.2,3012.1,17.94534546]
[1752215345680,14.979183,3012.2,3012.1,22.88734546]
[1752215346053,14.979183,3012.2,3012.1,17.64634546]
[1752215346253,14.979183,3012.2,3012.1,22.88634546]
[1752215346455,16.089183,3012.2,3012.1,22.88634546]
[1752215347378,16.089183,3012.2,3012.1,34.97434546]
[1752215348546,16.089183,3012.2,3012.1,31.93478146]
[1752215348950,17.199183,3012.2,3012.1,31.93478146]
[1752215349487,17.199183,3012.2,3012.1,53.56504925]
[1752215350090,17.199183,3012.2,3012.1,49.43004925]
[1752215350408,17.199183,3012.2,3012.1,52.35626825]
[1752215350596,17.199183,3012.2,3012.1,44.40326825]
[1752215350797,17.199183,3012.2,3012.1,44.06152512]
[1752215351505,18.309183,3012.2,3012.1,48.55242812]
[1752215352007,18.309183,3012.2,3012.1,46.41026112]
[1752215352417,18.309183,3012.2,3012.1,47.62695112]
[1752215352715,18.309183,3012.2,3012.1,37.42204612]
[1752215352876,18.309183,3012.2,3012.1,33.38835312]
[1752215353387,18.309183,3012.2,3012.1,34.64520312]
[1752215353991,19.419183,3012.2,3012.1,34.64520312]
[1752215354371,19.419183,3012.2,3012.1,29.87722612]
[1752215354575,19.419183,3012.2,3012.1,35.04011712]
[1752215355399,19.419183,3012.2,3012.1,29.87722612]
[1752215355600,19.419183,3012.2,3012.1,34.12096712]
[1752215356505,20.529183,3012.2,3012.1,37.38933712]
[1752215357218,20.529183,3012.2,3012.1,41.52433712]
[1752215357516,20.529183,3012.2,3012.1,48.14733712]
[1752215358612,20.529183,3012.2,3012.1,47.44572112]
[1752215358915,20.529183,3012.2,3012.1,50.03466337]
[1752215359090,21.639183,3012.2,3012.1,50.03466337]
[1752215359685,21.639183,3012.2,3012.1,48.48631037]
[1752215360732,21.639183,3012.2,3012.1,50.81539137]
[1752215360933,20.739183,3012.2,3012.1,50.81539137]
[1752215361220,20.739183,3012.2,3012.1,38.72939137]
[1752215361614,21.849183,3012.2,3012.1,40.43000737]
[1752215362020,21.849183,3012.2,3012.1,39.08900737]
[1752215362225,21.849183,3012.2,3012.1,38.54047537]
[1752215362719,9.32026631,3012.2,3012.1,56.18586837]
[1752215362911,9.32026631,3012.2,3012.1,51.14939537]
[1752215363729,9.32026631,3012.2,3012.1,52.77256537]
[1752215364224,9.32026631,3012.2,3012.1,49.08836537]
[1752215364402,10.43026631,3012.2,3012.1,49.08836537]
[1752215364797,10.43026631,3012.2,3012.1,50.30208737]
[1752215365522,10.43026631,3012.2,3012.1,54.521083]
[1752215365727,10.43026631,3012.2,3012.1,56.620188]
[1752215365934,10.43026631,3012.2,3012.1,52.507188]
[1752215366737,10.43026631,3012.2,3012.1,41.756199]
[1752215367034,11.54026631,3012.2,3012.1,55.824798]
[1752215367234,11.54026631,3012.2,3012.1,65.057424]
[1752215367730,11.54026631,3012.2,3012.1,59.947125]
[1752215368031,11.54026631,3012.2,3012.1,25.09651209]
[1752215368205,11.54026631,3012.2,3012.1,35.09651209]
[1752215368404,11.54026631,3012.2,3012.1,40.30051209]
[1752215368732,11.54026631,3012.2,3012.1,30.30051209]
[1752215368907,11.54026631,3012.2,3012.1,40.30051209]
[1752215369107,11.54026631,3012.2,3012.1,35.09651209]
[1752215369429,12.65026631,3012.2,3012.1,25.09651209]
[1752215369634,12.65026631,3012.2,3012.1,31.00848146]
[1752215370035,12.65026631,3012.2,3012.1,21.00848146]
[1752215370632,12.65026631,3012.2,3012.1,31.00848146]
[1752215371737,13.76026631,3012.2,3012.1,31.00848146]
[1752215372410,13.76026631,3012.2,3012.1,27.4526]
[1752215372611,13.76026631,3012.2,3012.1,17.4506]
[1752215373251,13.76026631,3012.2,3012.1,22.2506]
[1752215373405,15.41826631,3012.2,3012.1,22.2506]
[1752215373825,15.41826631,3012.2,3012.1,12.2506]
[1752215374034,15.41826631,3012.2,3012.1,17.4506]
[1752215374218,16.52826631,3012.2,3012.1,17.4506]
[1752215376742,17.63826631,3012.2,3012.1,17.4506]
[1752215378659,17.63826631,3012.2,3012.1,27.285]
[1752215378869,15.98026631,3012.2,3012.1,31.48974313]
[1752215379141,17.09026631,3012.2,3012.1,31.146]
[1752215379344,17.09026631,3012.2,3012.1,30.596]
[1752215380214,17.09026631,3012.2,3012.1,31.146]
[1752215380541,17.09026631,3012.2,3012.1,31.48774313]
[1752215381634,18.20026631,3012.2,3012.1,31.48774313]
[1752215382744,18.20026631,3012.2,3012.1,31.146]
[1752215383515,18.20126631,3012.2,3012.1,31.146]
[1752215384508,19.31126631,3012.2,3012.1,31.146]
[1752215385663,19.31126631,3012.2,3012.1,39.56511513]
[1752215385816,19.31126631,3012.2,3012.1,38.48071513]
[1752215386016,19.31126631,3012.2,3012.1,36.70169313]
[1752215386254,19.31126631,3012.2,3012.1,31.48774313]
[1752215386844,20.42126631,3012.2,3012.1,34.36169313]
[1752215387414,20.42126631,3012.2,3012.1,34.05561613]
[1752215388117,20.42126631,3012.2,3012.1,31.146]
[1752215388816,20.42126631,3012.2,3012.1,36.440925]
[1752215389228,21.53126631,3012.2,3012.1,36.440925]
[1752215390149,21.53126631,3012.2,3012.1,35.434263]
[1752215390524,21.53126631,3012.2,3012.1,34.77134]
[1752215391762,22.64126631,3012.2,3012.1,34.77134]
[1752215391935,22.64126631,3012.2,3012.1,31.3116]
[1752215392720,22.64126631,3012.2,3012.1,35.589226]
[1752215393632,22.64126631,3012.2,3012.1,34.744145]
[1752215394154,23.75126631,3012.2,3012.1,31.3116]
[1752215394342,23.75126631,3012.2,3012.1,33.791068]
[1752215395364,23.75126631,3012.2,3012.1,63.29328313]
[1752215395531,23.75126631,3012.2,3012.1,54.65406813]
[1752215396229,23.75126631,3012.2,3012.1,48.63098213]
[1752215396438,23.75126631,3012.2,3012.1,48.61131613]
[1752215396641,24.86126631,3012.2,3012.1,41.12506813]
[1752215396841,24.86126631,3012.2,3012.1,36.633912]
[1752215397146,24.86126631,3012.2,3012.1,35.850839]
[1752215397331,24.86126631,3012.2,3012.1,33.3006]
[1752215397529,24.86126631,3012.2,3012.1,37.854762]
[1752215398438,24.86126631,3012.2,3012.1,36.028269]
[1752215398924,25.97126631,3012.2,3012.1,36.028269]
[1752215399123,25.97126631,3012.2,3012.1,33.3006]
[1752215399919,25.97126631,3012.2,3012.1,37.70398]
[1752215400140,25.97126631,3012.2,3012.1,31.3116]
[1752215401455,10.94819615,3012.2,3012.1,59.34274313]
[1752215401657,10.94819615,3012.2,3012.1,52.45629754]
[1752215402021,7.3286808,3012.2,3012.1,52.95629754]
[1752215402353,4.01484371,3012.2,3012.1,63.59036489]
[1752215402655,1.11,3013.3,3012.8,2.539]
[1752215402860,1.11,3013.3,3012.9,23.692]
[1752215403353,1.11,3013.3,3013.0,0.55]
[1752215403554,1.11,3013.3,3013.2,10.0]
[1752215403857,2.22,3013.3,3013.2,10.0]
[1752215404439,2.22,3013.3,3013.2,10.55]
[1752215405039,2.22,3013.3,3013.2,10.79704221]
[1752215405936,3.8548,3013.3,3013.2,20.62604221]
[1752215406237,4.9648,3013.3,3013.2,20.62604221]
[1752215407445,4.9648,3013.3,3013.2,28.57704221]
[1752215408043,4.9648,3013.3,3013.2,18.33]
[1752215408247,4.9648,3013.3,3013.2,28.33]
[1752215408643,6.0748,3013.3,3013.2,28.33]
[1752215411225,6.0748,3013.3,3013.2,28.58231401]
[1752215411431,7.1848,3013.3,3013.2,28.74791401]
[1752215411628,7.1848,3013.3,3013.2,29.08965714]
[1752215411846,7.1848,3013.3,3013.2,28.74791401]
[1752215413943,8.2948,3013.3,3013.2,28.74791401]
[1752215415466,9.34638,3013.3,3013.2,18.4946]
[1752215415669,9.32468,3013.3,3013.2,8.1166]
[1752215416377,10.34798,3013.3,3013.2,8.1166]
[1752215416535,10.34798,3013.3,3012.4,10.0]
[1752215416536,1.5264,3013.1,3012.0,9.46239079]
[1752215416731,1.5264,3013.1,3012.1,20.41119942]
[1752215417044,1.5264,3013.1,3012.1,20.378]
[1752215417244,1.5264,3013.1,3012.3,10.0]
[1752215417446,1.5264,3013.1,3012.4,10.378]
[1752215418878,1.581,3013.0,3012.4,10.378]
[1752215419077,1.581,3012.8,3012.4,10.378]
[1752215420551,1.5571,3012.4,3012.2,7.952]
[1752215421170,2.6671,3012.4,3012.2,7.952]
[1752215421376,1.6261,3012.3,3012.2,7.952]
[1752215421771,1.6261,3012.3,3012.2,13.141]
[1752215423155,1.6261,3012.3,3012.2,7.952]
[1752215423353,1.6261,3012.3,3012.2,13.141]
[1752215423560,2.7361,3012.3,3012.2,13.141]
[1752215425365,1.11,3012.3,3012.2,23.141]
[1752215425563,1.11,3012.3,3012.2,23.57222294]
[1752215425792,1.11,3012.3,3012.2,26.88522294]
[1752215426089,2.22,3012.3,3012.2,26.88522294]
[1752215426247,2.22,3012.3,3012.2,27.83382554]
[1752215426649,2.22,3012.3,3012.2,28.22181529]
[1752215426881,2.22,3012.3,3012.2,27.82321269]
[1752215428278,3.33,3012.3,3012.2,27.82321269]
[1752215428449,3.33,3012.3,3012.2,26.88522294]
[1752215429985,3.33,3012.3,3012.2,21.69622294]
[1752215430286,3.33,3012.3,3012.2,26.88522294]
[1752215430685,4.44,3012.3,3012.2,26.88522294]
[1752215432752,4.44,3012.3,3012.2,27.28382554]
[1752215432993,4.44,3012.3,3012.2,30.48532554]
[1752215433284,5.55,3012.3,3012.2,30.48532554]
[1752215434389,5.55,3012.3,3012.2,30.08672294]
[1752215434780,5.55,3012.3,3012.2,34.22172294]
[1752215435492,5.55,3012.3,3012.2,34.38732294]
[1752215435694,6.66,3012.3,3012.2,34.38732294]
[1752215436059,6.66,3012.3,3012.2,26.2281]
[1752215436281,6.66,3012.3,3012.2,30.7536]
[1752215437055,6.66,3012.3,3012.2,25.5656]
[1752215437258,8.169,3012.3,3012.2,30.7536]
[1752215438093,9.279,3012.3,3012.2,30.7536]
[1752215438296,9.279,3012.3,3012.2,25.5656]
[1752215438592,9.279,3012.3,3012.2,12.2526]
[1752215438787,9.279,3012.3,3012.2,17.4406]
[1752215439104,9.279,3012.3,3012.2,27.4406]
[1752215440461,10.389,3012.3,3012.2,27.4406]
[1752215441875,10.389,3012.3,3012.2,22.2526]
[1752215442075,10.389,3012.3,3012.2,17.4406]
[1752215442270,10.389,3012.3,3012.2,27.4406]
[1752215443160,11.499,3012.3,3012.2,27.4406]
[1752215445687,12.609,3012.3,3012.2,22.2526]
[1752215445927,12.609,3012.3,3012.2,27.4406]
[1752215446530,12.609,3012.3,3012.2,22.2526]
[1752215446729,12.609,3012.3,3012.2,27.4406]
[1752215448320,13.719,3012.3,3012.2,27.4406]
[1752215450695,14.829,3012.3,3012.2,27.4406]
[1752215452823,13.32,3012.3,3012.2,27.87182294]
[1752215453123,13.32,3012.3,3012.2,32.24592554]
[1752215453302,14.43,3012.3,3012.2,32.24592554]
[1752215453922,14.43,3012.3,3012.2,31.84732294]
[1752215456131,15.54,3012.3,3012.2,31.84732294]
[1752215458634,16.65,3012.3,3012.2,31.84732294]
[1752215460202,16.65,3012.3,3012.2,31.18482294]
[1752215461114,17.76,3012.3,3012.2,31.18482294]
[1752215461310,17.76,3012.3,3012.2,17.4406]
[1752215461841,19.92524553,3012.3,3012.2,17.4406]
[1752215463531,21.03524553,3012.3,3012.2,13.3056]
[1752215464534,20.3781,3012.3,3012.2,13.3056]
[1752215465108,18.87,3012.3,3012.2,23.3056]
[1752215465308,18.87,3012.3,3012.2,27.04982294]
[1752215466043,19.98,3012.3,3012.2,27.04982294]
[1752215467039,19.98,3012.3,3012.2,31.8016]
[1752215468226,21.09,3012.3,3012.2,31.8016]
[1752215470242,21.09,3012.3,3012.2,28.4886]
[1752215470747,22.2,3012.3,3012.2,28.4886]
[1752215471637,23.8228,3012.3,3012.2,28.4886]
[1752215473547,24.9328,3012.3,3012.2,28.4886]
[1752215474426,27.53708,3012.3,3012.2,28.4886]
[1752215475830,28.64708,3012.3,3012.2,28.4886]
[1752215476232,31.81708,3012.3,3012.2,18.4886]
[1752215476978,31.0215677,3012.3,3012.2,18.4886]
[1752215478225,32.1315677,3012.3,3012.2,18.4886]
[1752215478636,31.73375096,3012.3,3012.2,18.4886]
[1752215480346,29.12947096,3012.3,3012.2,18.4886]
[1752215480748,30.23947096,3012.3,3012.2,8.1176]
[1752215480949,30.23947096,3012.3,3012.2,13.3016]
[1752215483233,31.34947096,3012.3,3012.2,13.3016]
[1752215485685,32.45947096,3012.3,3012.2,13.3016]
[1752215485863,30.83667096,3012.3,3012.2,13.3016]
[1752215486453,32.42587096,3012.3,3012.2,13.3016]
[1752215486861,32.42587096,3012.3,3012.2,13.3006]
[1752215486862,35.77945806,3012.3,3012.2,13.3006]
[1752215487043,32.42587096,3012.3,3012.2,13.3006]
[1752215487942,33.53587096,3012.3,3012.2,13.3006]
[1752215489470,33.13806612,3012.3,3012.2,13.3006]
[1752215490678,34.24806612,3012.3,3012.2,13.3006]
[1752215490970,37.65876548,3012.3,3012.2,13.135]
[1752215492558,37.65876548,3012.3,3012.2,13.134]
[1752215493037,38.76876548,3012.3,3012.2,13.134]
[1752215493233,38.76876548,3012.3,3012.2,7.952]
[1752215493449,38.76876548,3012.3,3012.2,13.134]
[1752215495669,39.87876548,3012.3,3012.2,13.134]
[1752215498176,40.98876548,3012.3,3012.2,7.952]
[1752215498344,40.98876548,3012.3,3012.2,13.133]
[1752215499377,41.53876548,3012.3,3012.2,7.952]
[1752215499581,41.53876548,3012.3,3012.2,13.133]
[1752215499879,52.51584987,3012.3,3012.2,7.952]
[1752215500092,52.51584987,3012.3,3012.2,13.132]
[1752215500394,0.55,3012.2,3012.0,0.002]
[1752215500549,5.01339936,3012.1,3012.0,0.002]
[1752215500750,5.01339936,3012.1,3012.0,5.182]
[1752215500984,12.00967759,3012.1,3012.0,5.182]
[1752215502378,25.72967759,3012.1,3012.0,0.002]
[1752215502856,30.82603346,3012.1,3012.0,5.182]
[1752215503056,20.82603346,3012.1,3012.0,5.182]
[1752215505493,21.93603346,3012.1,3012.0,5.182]
[1752215506290,25.41803346,3012.1,3012.0,0.002]
[1752215506465,0.55,3011.8,3011.5,7.956]
[1752215506671,2.2008,3011.6,3011.5,7.956]
[1752215506882,3.83614341,3011.6,3011.5,7.956]
[1752215507670,3.83614341,3011.6,3011.5,13.136]
[1752215507876,4.94614341,3011.6,3011.5,13.136]
[1752215508257,4.94614341,3011.6,3011.5,7.956]
[1752215508463,8.11614341,3011.6,3011.5,7.956]
[1752215508663,8.11614341,3011.6,3011.5,13.136]
[1752215509091,21.59814341,3011.6,3011.0,0.002]
[1752215509295,13.0763341,3011.1,3011.0,0.002]
[1752215509496,16.2463341,3011.1,3011.0,5.181]
[1752215510498,17.3563341,3011.1,3011.0,0.002]
[1752215510670,17.3563341,3011.1,3011.0,5.181]
[1752215510863,17.3563341,3011.1,3011.0,5.182]
[1752215511080,2.1087,3011.0,3010.8,0.002]
[1752215511282,1.6323,3010.7,3009.8,7.961]
[1752215511504,1.6323,3010.7,3009.9,5.18]
[1752215511505,2.1823,3010.2,3009.9,5.18]
[1752215512516,2.1823,3010.2,3010.0,5.18]
[1752215512700,3.17,3010.1,3009.8,7.961]
[1752215512901,2.0719,3009.9,3009.8,7.961]
[1752215513109,5.2419,3009.9,3009.8,7.961]
[1752215513305,16.2245341,3009.9,3009.8,7.961]
[1752215513616,16.2245341,3009.9,3009.8,13.14]
[1752215514314,16.2245341,3009.9,3009.8,13.141]
[1752215514482,17.89528751,3009.9,3009.8,7.961]
[1752215514683,17.89528751,3009.9,3009.8,13.141]
[1752215515215,5.8019,3009.9,3009.8,13.141]
[1752215516283,4.28,3009.9,3009.8,13.141]
[1752215516894,5.808,3009.9,3009.8,7.961]
[1752215517100,5.808,3009.9,3009.8,13.141]
[1752215517487,6.918,3009.9,3009.8,13.141]
[1752215518708,5.39,3009.9,3009.8,13.141]
[1752215520004,6.5,3009.9,3009.8,13.141]
[1752215521215,6.5,3009.9,3009.8,13.3066]
[1752215521896,6.5,3009.9,3009.8,13.141]
[1752215522094,8.82496,3009.9,3009.8,13.141]
[1752215522293,9.93496,3009.9,3009.8,13.141]
[1752215522790,9.93496,3009.9,3009.8,7.961]
[1752215522990,9.93496,3009.9,3009.8,13.141]
[1752215523722,9.93496,3009.9,3009.8,13.14]
[1752215524602,11.04496,3009.9,3009.8,13.14]
[1752215524924,8.72,3009.9,3009.8,13.14]
[1752215525126,8.578879,3009.9,3009.8,13.14]
[1752215525692,8.438879,3009.9,3009.8,23.14]
[1752215525925,7.89980551,3009.9,3009.8,24.20889762]
[1752215526129,7.89980551,3009.9,3009.8,23.8085]
[1752215527129,9.00980551,3009.9,3009.8,23.8085]
[1752215529516,10.11980551,3009.9,3009.8,23.8085]
[1752215530198,10.11980551,3009.9,3009.8,24.20889762]
[1752215530402,9.36513451,3009.9,3009.8,23.8085]
[1752215532017,10.47513451,3009.9,3009.8,23.8085]
[1752215532943,10.47513451,3009.9,3009.8,24.20889762]
[1752215533530,10.47513451,3009.9,3009.8,23.8085]
[1752215534538,11.58513451,3009.9,3009.8,23.8085]
[1752215535809,11.58513451,3009.9,3009.8,23.9741]
[1752215536128,11.04606252,3009.9,3009.8,23.9741]
[1752215537027,12.15606252,3009.9,3009.8,23.9741]
[1752215538311,11.40136639,3009.9,3009.8,23.3056]
[1752215539608,12.51136639,3009.9,3009.8,23.3056]
[1752215540660,12.51136639,3009.9,3009.8,23.70599762]
[1752215541011,12.51136639,3009.9,3009.8,24.37449762]
[1752215541219,12.51136639,3009.9,3009.8,24.77310022]
[1752215541538,12.51136639,3009.9,3009.8,26.76210022]
[1752215541844,11.43336887,3009.9,3009.8,26.76210022]
[1752215542009,12.54336887,3009.9,3009.8,26.76210022]
[1752215542418,11.7473891,3009.9,3009.8,26.76210022]
[1752215542729,11.7473891,3009.9,3009.8,27.31210022]
[1752215542923,11.7473891,3009.9,3009.8,29.98839914]
[1752215543444,1.11,3010.2,3010.0,0.6685]
[1752215543619,1.11,3010.2,3010.1,38.1383558]
[1752215543816,1.11,3010.2,3010.1,38.82073432]
[1752215544050,0.29280571,3010.2,3010.1,46.80313224]
[1752215544547,1.40280571,3010.2,3010.1,46.80313224]
[1752215544720,1.40280571,3010.2,3010.1,42.48788624]
[1752215544921,1.40280571,3010.2,3010.1,39.14883324]
[1752215545126,1.40280571,3010.2,3010.1,42.48788624]
[1752215545841,1.40280571,3010.2,3010.1,42.08928364]
[1752215546030,0.86398225,3010.2,3010.1,42.75274264]
[1752215546230,0.16950507,3010.2,3010.1,42.75274264]
[1752215546420,0.52617808,3011.1,3010.4,0.6685]
[1752215546622,0.52617808,3011.1,3011.0,0.1656]
[1752215546820,1.63617808,3011.1,3011.0,20.5136]
[1752215547237,1.63617808,3011.1,3011.0,28.4736]
[1752215547632,1.77617808,3011.1,3011.0,28.4736]
[1752215548422,1.77617808,3011.1,3011.0,29.1421]
[1752215548765,1.77617808,3011.1,3011.0,29.54249762]
[1752215548937,1.77617808,3011.1,3011.0,32.85749762]
[1752215549322,2.88617808,3011.1,3011.0,32.85749762]
[1752215551058,2.88617808,3011.1,3011.0,32.4571]
[1752215551863,3.99617808,3011.1,3011.0,28.4736]
[1752215552451,3.99617808,3011.1,3011.0,18.4736]
[1752215552953,4.54761589,3011.1,3011.0,18.4696]
[1752215553321,4.54761589,3011.1,3011.0,28.4696]
[1752215553766,4.54761589,3011.1,3011.0,18.4696]
[1752215554255,3.99617808,3011.1,3011.0,28.4696]
[1752215554426,5.10617808,3011.1,3011.0,28.4696]
[1752215556378,6.67467808,3011.1,3011.0,28.4696]
[1752215556577,6.67467808,3011.1,3011.0,28.304]
[1752215556781,7.78467808,3011.1,3011.0,18.304]
[1752215557088,8.56314589,3011.1,3011.0,28.304]
[1752215557244,9.11314589,3011.1,3011.0,28.304]
[1752215557775,8.56314589,3011.1,3011.0,28.304]
[1752215559248,9.67314589,3011.1,3011.0,28.304]
[1752215560364,7.32617808,3011.1,3011.0,28.4696]
[1752215561859,8.43617808,3011.1,3011.0,28.4696]
[1752215564171,9.54617808,3011.1,3011.0,28.4696]
[1752215566562,10.65617808,3011.1,3011.0,28.4696]
[1752215566882,10.65617808,3011.1,3011.0,28.86999762]
[1752215567275,10.65617808,3011.1,3011.0,30.85899762]
[1752215567466,10.65617808,3011.1,3011.0,31.52749762]
[1752215568957,11.76617808,3011.1,3011.0,31.52749762]
[1752215569968,1.11,3011.6,3011.2,1.989]
[1752215570166,1.11,3011.6,3011.5,13.2075]
[1752215570371,1.11,3011.6,3011.5,23.94589762]
[1752215570705,1.11,3011.6,3011.5,24.27399654]
[1752215571406,1.45726139,3011.6,3011.5,24.27399654]
[1752215571610,0.001,3012.0,3011.9,3.2075]
[1752215571788,0.001,3012.0,3011.9,38.24053172]
[1752215572309,2.221,3012.1,3012.0,13.2075]
[1752215572615,33.92886612,3012.3,3012.2,2.6575]
[1752215572809,33.92886612,3012.3,3012.2,23.39489762]
[1752215573113,25.76684151,3012.3,3012.2,23.39489762]
[1752215573798,23.27268804,3012.3,3012.2,32.74149425]
[1752215573975,22.87503477,3012.3,3012.2,55.00297625]
[1752215574306,20.65503477,3012.3,3012.2,31.12261991]
[1752215574480,20.65503477,3012.3,3012.2,24.5198832]
[1752215574684,20.65503477,3012.3,3012.2,24.11948558]
[1752215574896,20.65503477,3012.3,3012.2,24.5198832]
[1752215575498,20.65503477,3012.3,3012.2,34.5124712]
[1752215575822,20.48941428,3012.3,3012.2,34.5124712]
[1752215576121,20.48941428,3012.3,3012.2,23.79138666]
[1752215576318,21.59941428,3012.3,3012.2,23.79138666]
[1752215576791,11.29049759,3012.3,3012.2,32.86763928]
[1752215576990,11.29049759,3012.3,3012.2,33.1957382]
[1752215577192,5.46634412,3012.3,3012.2,37.73031791]